Cogmind - Beta 15 @@@ ROGUE MODE // 2025.07.06 @ 05:38:31 Player: Finn Result: Destroyed by G-34 Mercenary with Small Laser Performance ------------- Evolutions (0) 0 Regions Visited (1) 200 Robots Destroyed (9) 45 Value Destroyed (140) 140 Prototype IDs (0) 0 Alien Tech Used (0) 0 Bonus (0) 0 TOTAL SCORE: 385 Bonus ------- None Cogmind --------- Core Integrity 0/250 Matter 196/300 Energy 160/160 System Corruption 0% Temperature Warning (328) Movement Treading (160) Location -10/Materials Parts ------- > --- POWER (1) -------- Light Nuclear Core > --- PROPULSION (2) --- Improved Treads Improved Treads > --- UTILITY (2) ------ Small Storage Unit > --- WEAPON (2) ------- Particle Gun > --- INVENTORY (8) ---- Improved Treads Improved Treads Small Storage Unit Medium Armor Plating Tractor Beam Medium Laser Peak State ------------ > --- POWER ------------ Light Nuclear Core > --- PROPULSION ------- Improved Treads Improved Treads > --- UTILITY ---------- Small Storage Unit Medium Armor Plating > --- WEAPON ----------- Small Laser Particle Gun > --- INVENTORY -------- Improved Treads Improved Treads Small Storage Unit Medium Armor Plating Tractor Beam Medium Laser Small Laser [Rating: 14] Favorites ----------- Power Light Nuclear Core Engine Light Ion Engine Power Core Light Nuclear Core Propulsion Improved Treads Treads Improved Treads Wheel Compact Wheel Utility Small Storage Unit Storage Small Storage Unit Protection Medium Armor Plating Weapon Small Laser Energy Gun Small Laser Build | -11 -10 ------- Run | Yrd Mat Slots Evolved . | . . Power . | . . Propulsion . | . . Utility . | . . Weapon . | . . Parts Attached 12 | 6 6 Power 2 | 1 1 Engine 1 | 1 . Core 1 | . 1 Reactor . | . . Propulsion 4 | 2 2 Treads 2 | . 2 Leg . | . . Wheel 2 | 2 . Hover . | . . Flight . | . . Utility 2 | 1 1 Device . | . . Storage 1 | 1 . Processor . | . . Hackware . | . . Protection 1 | . 1 Artifact . | . . Weapon 4 | 2 2 Energy Gun 4 | 2 2 Energy Cannon . | . . Ballistic Gun . | . . Ballistic Cannon . | . . Launcher . | . . Special Weapon . | . . Impact Weapon . | . . Slashing Weapon . | . . Piercing Weapon . | . . Special Melee Weapon . | . . Unidentified Prototypes . | . . Parts Lost 4 | . 4 Power 1 | . 1 Propulsion 1 | . 1 Utility 1 | . 1 Weapon 1 | . 1 Highest Loss Streak 2 | . 2 To Critical Strikes . | . . Average Backups 3 | 1 3 Power . | . . Propulsion . | . . Utility 2 | . 2 Weapon . | . . Tool/Special . | . . Unused Backups 5 | . 5 Power . | . . Propulsion 2 | . 2 Utility 3 | . 3 Weapon . | . . Tool/Special . | . . Average Slot Usage (%) 87 | . 87 Engine 4 | . 4 Core 8 | . 8 Treads 13 | . 13 Wheel 12 | . 12 Storage 14 | . 14 Protection 5 | . 5 Energy Gun 27 | . 27 Peak Build Rating 14 | 6 14 Average Rating 9 | 4 9 On Entrance 3 | . 6 Naked Turns . | . . Heaviest Build 21 | 11 21 Greatest Support 46 | 26 46 Greatest Overweight (x) . | . . Average Overweight (x) . | . . Largest Inventory Capacity 8 | 8 8 Average Capacity 7 | 7 8 Most Carried 7 | 5 7 Average Carried 3 | 1 4 Final Capacity 8 | 8 8 Final Carried 6 | 2 6 Class Distribution -------------------- 100% | Mutant Dominant Class ---------------- Mutant | -10/Materials Resources | -11 -10 ----------- Run | Yrd Mat Matter Collected 383 | 260 123 Remotely . | . . Salvage Created 326 | 96 230 Parts 14 | 2 12 Haulers Intercepted . | . . Recyclers Shooed 1 | . 1 Parts Field Recycled . | . . Retrieved Matter . | . . Parts Self-Destructed . | . . Prevented . | . . Kills | -11 -10 ------- Run | Yrd Mat Combat Hostiles Destroyed 5 | . 5 Guns 5 | . 5 Classes Destroyed 5 | 1 4 Worker 1 | . 1 Recycler 2 | 1 1 Operator 1 | . 1 Swarmer 3 | . 3 Grunt 2 | . 2 Best Kill Streak 3 | 1 3 Combat Bots Only 3 | . 3 Max Kills in Single Turn 1 | 1 1 Gunslinging . | . . Exploded . | . . Melee . | . . Uniques/NPCs Destroyed . | . . Combat | -11 -10 -------- Run | Yrd Mat Hostile Shots Fired 88 | . 88 Missed 13 | . 13 Hits 75 | . 75 Projectile 75 | . 75 Critical Strikes 1 | . 1 Damage Taken 867 | . 867 Core 255 | . 255 Absorbed by Shields . | . . Core Remaining (%) 100 | 100 . Volleys Fired 48 | 4 44 Largest 2 | 2 2 Hottest 105 | 90 105 Shots Fired 93 | 8 85 Gun 93 | 8 85 Cannon . | . . Launcher . | . . Special . | . . Kinetic . | . . Thermal 93 | 8 85 Explosive . | . . Electromagnetic . | . . Robot Hit Streak 8 | 2 8 Robot Miss Streak 6 | 1 6 Penetration Max . | . . Secondary Targets 1 | . 1 Max Gunslinging Chain 1 | . 1 Shots Hit Robots 45 | 5 40 Core Hits 17 | 2 15 Critical Kills . | . . Critical Parts Destroyed . | . . Critical Strikes 3 | . 3 Burn 3 | . 3 Melee Attacks . | . . Impact . | . . Slashing . | . . Piercing . | . . Sneak Attacks . | . . Combat Hostiles . | . . Follow-up Attacks . | . . Damage Inflicted 618 | 59 559 Guns 618 | 59 559 Cannons . | . . Explosions . | . . Melee . | . . Ramming . | . . Kinetic . | . . Thermal 618 | 59 559 Explosive . | . . Electromagnetic . | . . Impact . | . . Slashing . | . . Piercing . | . . Highest Corruption . | . . Average Corruption . | . . Corruption Purged . | . . Corruption Blocked . | . . Overload Shots . | . . Overflow Damage . | . . Projectiles . | . . Explosions . | . . Melee . | . . Knockbacks . | . . Impact . | . . Kinetic . | . . Secondary . | . . Self-Inflicted Damage . | . . Shots . | . . Rammed . | . . Targets Rammed . | . . Kicked . | . . Crushed . | . . Highest Temperature 651 | 120 651 Average Temperature 201 | 63 211 Received Heat Transfer 420 | . 420 Effects 21 | . 21 Shutdowns 3 | . 3 Energy Bleed 2 | . 2 Interference 2 | . 2 Matter Decay 3 | . 3 Short Circuit 4 | . 4 Damage (minor) 1 | . 1 Damage (major) 5 | . 5 Damage (core) 1 | . 1 Siege Activations . | . . Martial Activations . | . . Shielding Activations . | . . Robots Disrupted . | . . Combat Hostiles . | . . Robots Corrupted . | . . Combat Hostiles . | . . Parts Fried . | . . Impact Corruptions . | . . Robots Melted . | . . Combat Hostiles . | . . Parts Melted 3 | 1 2 Heat Transferred 1785 | 149 1636 Parts Sabotaged . | . . Parts Stolen . | . . Parts Stripped . | . . Power Chain Reactions . | . . Alert | -11 -10 ------- Run | Yrd Mat Maximum Alert Level . | . . Low Security (%) 100 | 100 100 Level 1 . | . . Level 2 . | . . Level 3 . | . . Level 4 . | . . Level 5 . | . . High Security . | . . Max Security . | . . Peak Influence 60 | 5 60 Initial . | . . Average 13 | . 15 Influence Increases 140 | 5 135 Destroy 0b10 Robot/C 100 | . 100 Destroy 0b10 Robot/NC 20 | 5 15 Destroy Leader 20 | . 20 Influence Decreases 140 | 5 135 Time Decay 120 | 5 115 Lost Part 20 | . 20 Squads Dispatched 1 | . 1 Investigation . | . . Extermination . | . . Reinforcement 1 | . 1 Assault . | . . Garrison . | . . Intercept . | . . Searches Triggered . | . . Construction Impeded . | . . Haulers Reinforced . | . . Active Scanning Responses . | . . Cargo Convoy Interrupts . | . . Stealth | -11 -10 --------- Run | Yrd Mat Distress Signals 1 | . 1 Communications Jammed . | . . Distress Signals . | . . Times Spotted 13 | . 13 Peak Tracking Total 4 | . 4 Tactical Retreats . | . . Traps | -11 -10 ------- Run | Yrd Mat Traps Triggered . | . . Indirectly . | . . Trap Hack Attempts . | . . Triggered . | . . Disarmed . | . . Reprogrammed . | . . Reused . | . . Traps Extracted . | . . Installed . | . . Triggered . | . . Machines | -11 -10 ---------- Run | Yrd Mat Machines Disabled . | . . Max in Single Turn . | . . Machines Repaired . | . . Machines Dismantled . | . . Machines Sabotaged . | . . Overloaded Fab Kills . | . . Hacking | -11 -10 --------- Run | Yrd Mat Machines Accessed . | . . Terminals . | . . Fabricators . | . . Repair Stations . | . . Recycling Units . | . . Scanalyzers . | . . Garrison Access . | . . Total Hacks . | . . Successful . | . . Failed . | . . Catastrophic . | . . Database Lockouts . | . . Manual . | . . Terminals . | . . Fabricators . | . . Repair Stations . | . . Recycling Units . | . . Scanalyzers . | . . Garrison Access . | . . Terminal Hacks . | . . Fabricator Hacks . | . . Repair Station Hacks . | . . Recycling Unit Hacks . | . . Scanalyzer . | . . Garrison Access Hacks . | . . Unauthorized Hacks . | . . Terminals . | . . Fabricators . | . . Repair Stations . | . . Recycling Units . | . . Scanalyzers . | . . Garrison Access . | . . Data Cores Recovered . | . . Used . | . . Hacking Detections . | . . Full Trace Events . | . . Feedback Events . | . . Feedback Blocked . | . . Robot Schematics Acquired . | . . Robots Built . | . . Authchips . | . . Time . | . . Total Robot Build Rating . | . . Part Schematics Acquired . | . . Parts Built . | . . Authchips . | . . Time . | . . Total Part Build Rating . | . . Parts Repaired . | . . Time . | . . Parts Recycled . | . . Recycled Matter . | . . Retrieved Matter . | . . Retrieved Components . | . . Parts Scanalyzed . | . . Part Schematics Acquired . | . . Parts Damaged . | . . Bothacking | -11 -10 ------------ Run | Yrd Mat Used RIF Installer . | . . Robots Hacked . | . . Non-combat . | . . Combat . | . . Robot Hacks Applied . | . . Relay Couplers Released . | . . Fabnet Peak Effective % . | . . Robots Rewired . | . . Allies Hacked . | . . Hacks Repelled . | . . Allies | -11 -10 -------- Run | Yrd Mat Total Allies . | . . Largest Group . | . . Highest-Rated Group . | . . Highest-Rated Ally . | . . Total Orders . | . . Ally Attacks . | . . Total Damage . | . . Kills . | . . Allies Corrupted . | . . Allies Melted . | . . Intel | -11 -10 ------- Run | Yrd Mat Active Infowar (turns) . | . . Robot Analysis Total . | . . Derelict Logs Recovered . | . . Drone Launches . | . . Drone Recoveries . | . . Exploration | -11 -10 ------------- Run | Yrd Mat Turns Passed 591 | 63 528 Spaces Moved 346 | 46 300 Core 11 | 11 . Treads 127 | . 127 Legs . | . . Wheels 208 | 35 173 Hover . | . . Flight . | . . Fastest Speed 50 | 50 90 Average Speed 116 | 80 122 Slowest Speed 160 | 90 160 Overloaded Moves . | . . Propulsion Burnouts . | . . Robots Hopped . | . . Potential Cave-ins . | . . Cave-ins Triggered . | . . Exploration Rate (%) 16 | 4 29 Regions Visited 1 Branch Regions . Pre-discovered Areas . | . . Known Exits Taken . | . . Unknown Exits Taken 1 | 1 . Scrap Searched . | . . Spaces Dug . | . . Terrain Destroyed . | . . Melee . | . . Projectile . | . . AOE . | . . Terrain Rammed . | . . Walls Destroyed . | . . Machines Disabled . | . . Actions | -11 -10 --------- Run | Yrd Mat Total 440 | 63 377 Wait 16 | . 16 Move 345 | 45 300 Hop . | . . Pick Up 17 | 8 9 Fast Attach . | . . Attach 10 | 6 4 Detach . | . . Swap 2 | . 2 Drop 2 | . 2 Fire 48 | 4 44 Melee . | . . Ram . | . . Kick . | . . Crush . | . . Escape Stasis . | . . Rewire . | . . Trap . | . . Miscellaneous . | . . Route ------- -11/Scrapyard -10/Materials (discovered 2 exits: [*Mat] / [*Sub]) History --------- Turn | Location | Event 21 | -11/Scrapyard | Discovered new exit (range 15) 64 | -11/Scrapyard | Entered Materials 167 | -10/Materials | Discovered new exit (range 7) 301 | -10/Materials | Build established: Mutant 495 | -10/Materials | Discovered new exit (range 13) 533 | -10/Materials | Core integrity fell below 50% 580 | -10/Materials | Core integrity fell below 20% 592 | -10/Materials | Destroyed by G-34 Mercenary with Small Laser Last Messages --------------- 00568_ Particle Gun broken. 00568_ Overheating: Short circuit. 00572_ Overheating: System interference. 00572_ Sml. Laser temporarily disabled. 00574_ Imp. Treads broken. 00574_ Overheating: Short circuit. 00577_ Overheating: Sml. Storage Unit damaged (-78). 00577_ Overheating: Imp. Treads damaged (-24). 00579_ Power failure, Lgt. Nuclear Core shutdown. 00579_ Overheating: Sml. Laser damaged (-6). 00579_ R-06 Scavenger collects Hover Unit. 00580_ Overheating: Core damaged (-50). 00581_ Overheating: Matter decay (-58). 00582_ M-13 Machinist repairs G-34 Mercenary. 00586_ M-13 Machinist repairs G-34 Mercenary Ion Engine. 00587_ Med. Armor Plating destroyed. 00589_ Sml. Laser destroyed. Map ----- +----------------------------------------------------+ | ???????????????????????# """ # % #??? | | ???????????????????????# """ ## ######## #??? | | ???????????????????????# """ ## #??###### ##### | | ???????????????????????# ## #?## # # | | ???????????????????????# ## #?#< # # "" | | ???????????????????????# ## #??# + + "" | | ???????????????????????######### #??# # # "" | | ????????????????????????????####+#### # # | | ?????????????????? ????????# ## # ##### | | ?????????????????? ???????# """ ## # #???# | | ??????????????????##+######## """ ## #% #???# | | ??????????????????# # """ ## # #???# | | ??????????????????# # """ ## # #???# | | ??????????????????# """ # """ ## # #???# | | ?????????????????### """ # ### #! #???# | | ?????????????????#"" """ # #?#####% #???# | | ?????????????????#"" # ####### #???# | | ?????????????????#"T m # " " # # #???# | | ?????????????????#"" """gg + "R" # # #???# | | ?????????????????#""/ """ # """ # """ # #???# | | ?????????????????### """ # # """ # ##### | | ???????????????????# ######### """ #= | | ???????????????????# #???????# !+% | | ???????????????????# """ #???????# """ # | | ???????????????????# """ #???????# """ ######### | | ???????????????????# """@ #???????# """ #???????? | | ??????????????????# #???????# #???????? | | ????????????????? + #???????# #???????? | | ???????????????? # | +???????# #???????? | | ???????????????? ?###### < #???????#######???????? | | ???????????????????????# #?????????????????????? | | ???????????????????????#####?????????????????????? | | ?????????????????????????????????????????????????? | | ?????????????????????????????????????????????????? | | ?????????????????????????????????????????????????? | | ?????????????????????????????????????????????????? | | | | | | | | | | | | | | | | | | | | | | | | | | | | | +----------------------------------------------------+ Best States ------------- Heat Dissipation 25 Energy Generation 14 Energy Capacity 160 Matter Stores 300 Matter Capacity 300 Sight Range 16 Terrain Scan Density 10 Armor Coverage 225 Evasion (%) 50 Recoil Reduction 2 Item Schematics ----------------- None Robot Schematics ------------------ None Fabricated ------------ Nothing Repaired ---------- Nothing Alien Tech Used ----------------- None Achievements -------------- None Challenges ------------ None Game ------ Seed GatlingAntimissileTether Manual? 0 Play Time 00:08:33 Cumulative 11.5 hours Start 2025.07.06 @ 05:33:04 End 2025.07.06 @ 05:38:31 Sessions 1 Manual Loads 0 Difficulty Rogue Special Mode None Game No. 21 Rogue 4 Adventurer 15 Explorer 2 Win Type - Total 0 Types 0/0/0/0/0/0/0/0/0/0 Lore% 7 Gallery% 17 Achievement% 18 Wizard Run 0 Options --------- Layout 1 ASCII 0 Keyboard 0 Movement Mouse Keybinds 0 Fullscreen 1 Font 24/Smallcaps Map View 50x35 Zoom Use 0% Tactical HUD 1 Map Filters NONE Filters NONE Steam 1 RUN: c62c7cc3-8385-410d-bf10-a03778de3e46